bitfinex-derivatives/quotes_SOLF0:USTF0_20250106
["timestamp","ask_amount","ask_price","bid_price","bid_amount"]
[1736165253250,7.30298455,216.03,216.0,2.3155]
[1736165255650,7.30298455,216.03,216.01,2.3154]
[1736165259954,7.30298455,216.03,215.97,7.30298455]
[1736165260155,7.30298455,216.03,216.0,2.3155]
[1736165264054,9.61828455,216.03,216.0,2.3155]
[1736165267159,2.3154,216.02,215.98,2.3157]
[1736165267655,7.30298455,216.03,215.98,2.3157]
[1736165268459,2.3155,216.01,215.98,2.3157]
[1736165278367,2.3156,216.0,215.98,2.3157]
[1736165278565,2.54,215.99,215.98,2.3157]
[1736165278964,2.3159,215.98,215.87,6.1505]
[1736165279256,9.84298455,215.99,215.92,7.30298455]
[1736165280466,2.54,215.99,215.94,7.30298455]
[1736165280664,2.3156,216.0,215.98,2.3158]
[1736165280865,2.54,215.99,215.98,2.3158]
[1736165282875,2.54,215.99,215.98,9.61878455]
[1736165284272,8.75888455,216.06,215.98,9.61878455]
[1736165284273,2.3153,216.03,216.0,2.3155]
[1736165284466,2.54,216.02,216.0,2.3155]
[1736165285067,2.54,216.01,216.0,2.3155]
[1736165285572,2.3148,216.08,216.03,2.3152]
[1736165285877,2.54,216.07,216.03,2.3152]
[1736165286067,2.54,216.07,216.0,7.30298455]
[1736165286467,2.54,216.07,216.02,2.3153]
[1736165286468,2.315,216.05,216.02,2.3153]
[1736165286666,2.54,216.07,216.0,7.30298455]
[1736165287069,2.315,216.06,216.02,2.3153]
[1736165287476,2.54,216.07,215.91,30.19329001]
[1736165287769,7.30298455,216.06,215.98,7.30298455]
[1736165288565,2.3152,216.04,216.01,2.3154]
[1736165289272,7.30298455,216.06,215.99,2.3157]
[1736165289273,2.3154,216.02,215.99,2.3157]
[1736165289471,4.8554,216.02,215.99,2.3157]
[1736165291264,2.3155,216.01,215.98,2.3158]
[1736165305675,2.3155,216.01,215.99,2.3157]
[1736165313075,2.54,216.0,215.99,2.3157]
[1736165315577,2.54,216.0,215.98,2.3158]
[1736165315879,2.54,216.0,215.95,7.30298455]
[1736165316279,7.30298455,215.98,215.86,9.87137156]
[1736165316477,7.30298455,215.98,215.9,7.30298455]
[1736165316681,7.30298455,215.96,215.9,7.30298455]
[1736165317182,2.54,215.95,215.9,7.30298455]
[1736165318479,2.54,215.95,215.94,2.3161]
[1736165320382,2.3163,215.94,215.91,2.3165]
[1736165320582,9.61928455,215.94,215.91,2.3165]
[1736165322483,9.61928455,215.94,215.87,8.81958455]
[1736165322484,7.30298455,215.94,215.92,2.3164]
[1736165325380,7.30298455,215.94,215.88,2.3168]
[1736165325381,2.3165,215.92,215.88,2.3168]
[1736165325577,2.54,215.95,215.87,7.30298455]
[1736165325778,7.30298455,215.94,215.87,7.30298455]
[1736165326181,7.30298455,215.94,215.92,2.3163]
[1736165327080,2.54,215.93,215.92,2.3163]
[1736165328883,4.8564,215.93,215.89,2.3167]
[1736165329188,7.30298455,215.92,215.86,7.30298455]
[1736165329779,9.61948455,215.92,215.86,7.30298455]
[1736165329987,7.30298455,215.92,215.84,7.30298455]
[1736165330182,7.30298455,215.9,215.84,7.30298455]
[1736165330684,7.30298455,215.9,215.86,2.317]
[1736165331185,9.61968455,215.9,215.87,2.3169]
[1736165332886,7.30298455,215.9,215.81,4.4024]
[1736165333185,2.3168,215.89,215.85,2.3171]
[1736165333386,9.84298455,215.88,215.85,2.3171]
[1736165333585,2.317,215.87,215.84,2.3172]
[1736165334087,2.317,215.87,215.8,7.30298455]
[1736165334389,9.84298455,215.88,215.8,7.30298455]
[1736165334587,12.15988455,215.88,215.85,2.3172]
[1736165338388,9.61988455,215.88,215.85,2.3172]
[1736165338588,2.54,215.87,215.86,2.3171]
[1736165338885,2.54,215.87,215.84,7.30298455]
[1736165340397,2.54,215.87,215.86,2.3171]
[1736165340597,2.54,215.88,215.84,7.30298455]
[1736165341085,1.4301,215.97,215.86,7.30298455]
[1736165341291,7.30298455,215.95,215.89,7.30298455]
[1736165341497,2.9545,215.98,215.89,7.30298455]
[1736165341691,2.54,215.94,215.93,2.3163]
[1736165346302,2.54,215.94,215.8,4.6354]
[1736165346502,2.54,215.94,215.88,7.30298455]
[1736165347193,2.54,215.94,215.83,4.1945]
[1736165347194,2.54,215.94,215.9,7.30298455]
[1736165348802,2.54,215.94,215.93,2.3163]
[1736165360903,3.47585114,216.02,215.93,7.30298455]
[1736165361106,2.3157,215.99,215.96,2.316]
[1736165361404,9.61868455,215.99,215.96,2.316]
[1736165361605,2.3157,215.99,215.96,2.316]
[1736165361805,9.61868455,215.99,215.96,2.316]
[1736165362205,2.54,215.98,215.96,2.316]
[1736165363608,2.54,215.98,215.93,7.30298455]
[1736165363808,2.54,215.98,215.95,2.3161]
[1736165363809,4.8558,215.98,215.95,2.3161]
[1736165368410,2.54,215.98,215.84,4.6345]
[1736165368610,7.30298455,215.97,215.93,2.3162]
[1736165369309,2.3161,215.96,215.93,2.3162]
[1736165371914,2.3157,215.99,215.96,2.316]
[1736165372414,2.54,215.98,215.96,2.316]
[1736165373114,2.54,215.97,215.96,2.316]
[1736165373919,3.47528226,216.06,215.93,7.30298455]
[1736165374116,3.28225642,216.05,215.98,2.3157]
[1736165374320,7.30298455,216.01,215.98,2.3157]
[1736165374519,2.54,216.0,215.98,2.3157]
[1736165375518,4.8556,216.0,215.98,2.3157]
[1736165379420,2.54,215.99,215.98,2.3157]
[1736165380519,2.54,215.99,215.95,7.30298455]
[1736165380715,4.8557,215.99,215.96,2.3159]
[1736165381722,4.8557,215.99,215.86,4.1626298]
[1736165381723,2.3159,215.97,215.86,4.1626298]
[1736165381923,7.30298455,215.97,215.86,4.1626298]
[1736165382118,7.30298455,215.97,215.9,7.30298455]
[1736165382728,2.3161,215.95,215.93,2.3163]
[1736165382927,2.54,215.94,215.93,2.3163]
[1736165384829,2.54,215.94,215.92,2.3164]
[1736165387030,2.54,215.94,215.93,2.3163]
[1736165395134,2.54,215.94,215.93,9.61928455]
[1736165395635,2.54,216.03,215.93,7.30298455]
[1736165395835,2.54,216.03,216.0,7.30298455]
[1736165396430,24.89081664,216.07,216.0,7.30298455]
[1736165396630,2.54,216.02,216.0,7.30298455]
[1736165396937,2.54,216.06,216.0,7.30298455]
[1736165398133,4.855,216.06,216.02,2.3153]
[1736165399533,2.54,216.06,216.03,2.3152]
[1736165399733,2.54,216.05,216.03,2.3152]
[1736165400836,2.54,216.05,216.04,2.3151]
[1736165402034,6.4103132,216.11,216.02,7.30298455]
[1736165402241,2.54,216.1,216.06,7.30298455]
[1736165402855,2.54,216.1,216.07,2.3147]
[1736165403543,2.54,216.1,216.09,2.3146]
[1736165404342,7.30298455,216.13,216.09,2.3146]
[1736165404539,2.54,216.12,216.09,2.3146]
[1736165406145,2.54,216.12,216.06,7.30298455]
[1736165406442,7.30298455,216.13,216.06,7.30298455]
[1736165406746,2.54,216.12,216.1,2.3144]
[1736165406946,2.54,216.11,216.1,2.3144]
[1736165407446,5.78753795,216.16,216.12,2.3142]
[1736165407747,2.54,216.15,216.1,7.30298455]
[1736165408045,2.54,216.14,216.1,7.30298455]
[1736165408249,2.54,216.13,216.1,7.30298455]
[1736165408846,2.54,216.13,216.11,2.3144]
[1736165409635,2.54,216.13,216.12,2.3143]
[1736165425143,2.54,216.14,216.13,2.3142]
[1736165428145,9.84298455,216.14,216.02,4.2937]
[1736165428351,2.3144,216.12,216.09,2.3146]
[1736165430253,2.3144,216.12,216.1,2.3145]
[1736165430760,2.3144,216.11,216.05,7.30298455]
[1736165431451,2.3144,216.11,216.08,2.3146]
[1736165435959,2.3149,216.07,216.04,2.3151]
[1736165436158,9.84298455,216.06,215.99,7.30298455]
[1736165436353,2.54,216.05,215.99,7.30298455]
[1736165436548,2.54,216.05,216.02,2.3153]
[1736165437159,9.61818455,216.04,216.0,2.3155]
[1736165437452,7.30298455,216.04,215.96,7.30298455]
[1736165438354,9.61808455,216.04,216.0,2.3155]
[1736165438756,9.61808455,216.04,215.98,7.30298455]
[1736165439959,4.855,216.05,216.02,2.3153]
[1736165440151,2.54,216.05,216.0,7.30298455]
[1736165440555,2.54,216.05,216.04,2.3151]
[1736165440753,2.54,216.05,216.0,7.30298455]
[1736165440955,2.54,216.05,216.03,2.3151]
[1736165442461,2.54,216.05,216.04,2.3151]
[1736165443364,2.54,216.05,216.04,8.7651]
[1736165443966,2.54,216.05,216.04,13.75298455]
[1736165444963,2.54,216.05,216.04,16.06808455]
[1736165445565,2.54,216.08,216.07,2.3148]
[1736165445763,2.54,216.08,216.07,9.61778455]
[1736165445965,2.54,216.09,216.07,7.30298455]
[1736165446667,2.54,216.09,216.08,2.3147]
[1736165448567,2.54,216.09,216.07,7.30298455]
[1736165448568,2.87,216.17,216.07,7.30298455]
[1736165448772,2.54,216.16,216.1,7.30298455]
[1736165448967,4.8539,216.16,216.12,2.3142]
[1736165451778,2.314,216.15,216.12,2.3142]
[1736165453276,4.854,216.16,216.12,2.3143]
[1736165454170,10.17298455,216.17,216.12,2.3143]
[1736165454376,7.30298455,216.15,216.04,6.45]
[1736165454675,2.54,216.16,216.07,7.30298455]
[1736165454676,7.30298455,216.13,216.07,7.30298455]
[1736165454978,2.3144,216.11,216.07,9.61768455]
[1736165455279,2.54,216.1,216.07,2.3147]
[1736165455977,4.8545,216.1,216.07,2.3147]
[1736165457570,4.8545,216.1,216.08,2.3147]
[1736165458075,7.30298455,216.09,216.04,8.7651]
[1736165458792,2.3148,216.08,216.04,8.7651]
[1736165459281,2.3148,216.08,216.04,6.45]
[1736165459482,2.3148,216.08,216.05,2.315]
[1736165461282,9.61758455,216.09,216.05,2.315]
[1736165461487,2.54,216.08,216.06,7.30298455]
[1736165461985,2.54,216.08,216.07,2.3148]
[1736165462583,2.3143,216.13,216.06,7.30298455]
[1736165462882,2.54,216.12,216.08,7.30298455]
[1736165464487,2.54,216.12,216.11,2.3144]
[1736165465187,8.72168455,216.18,216.1,7.30298455]
[1736165465487,4.8539,216.16,216.12,2.3142]
[1736165465986,4.8539,216.16,216.13,2.3142]
[1736165466686,2.54,216.15,216.13,2.3142]
[1736165470682,2.54,216.15,216.11,7.30298455]
[1736165470885,7.30298455,216.14,216.05,3.0251]
[1736165471079,7.30298455,216.12,216.06,7.30298455]
[1736165472283,2.3144,216.11,216.08,2.3146]
[1736165472491,2.54,216.1,216.08,2.3146]
[1736165473590,2.54,216.1,216.06,7.30298455]
[1736165473791,2.54,216.1,216.09,2.3146]
[1736165481692,8.76488455,216.16,216.09,7.30298455]
[1736165481890,4.854,216.15,216.09,7.30298455]
[1736165483191,2.54,216.19,216.14,7.30298455]
[1736165483396,2.54,216.19,216.16,7.30298455]
[1736165484100,2.54,216.19,216.17,2.3138]
[1736165484295,2.54,216.19,216.16,7.30298455]
[1736165484897,2.54,216.19,216.17,2.3138]
[1736165485801,2.54,216.19,216.18,2.3136]
[1736165500524,2.3132,216.22,216.16,7.30298455]
[1736165500829,2.3126,216.28,216.25,2.3129]
[1736165501017,2.62,216.27,216.25,2.3129]
[1736165501421,7.30298455,216.29,216.25,2.3129]
[1736165501717,7.30298455,216.29,216.22,7.30298455]
[1736165501718,2.62,216.28,216.26,2.3128]
[1736165508228,2.62,216.28,216.22,7.30298455]
[1736165508430,2.62,216.28,216.27,2.3127]
[1736165513028,2.3123,216.31,216.27,2.3127]
[1736165513227,2.62,216.3,216.29,2.3125]
[1736165513423,1.3977,216.33,216.29,2.3125]
[1736165513628,2.62,216.31,216.29,2.3125]
[1736165514432,2.62,216.31,216.3,2.3124]
[1736165515230,2.3119,216.35,216.32,2.3121]
[1736165515528,2.62,216.34,216.3,7.30298455]
[1736165516038,2.62,216.34,216.32,2.3121]
[1736165517635,2.62,216.34,216.31,2.3122]
[1736165517839,2.3118,216.35,216.31,2.3122]
[1736165518131,2.62,216.35,216.33,2.312]
[1736165518531,2.62,216.35,216.32,7.30298455]
[1736165518730,2.62,216.35,216.34,2.3119]
[1736165521036,4.9317,216.37,216.34,2.3119]
[1736165523139,2.62,216.37,216.35,2.3118]
[1736165523541,6.09063675,216.38,216.35,2.3118]
[1736165524141,3.47063675,216.38,216.35,2.3118]
[1736165524440,2.62,216.38,216.35,2.3118]
[1736165524941,2.62,216.38,216.24,4.4081]
[1736165524942,2.3122,216.32,216.28,2.3125]
[1736165525141,4.9122,216.32,216.28,2.3125]
[1736165525544,4.9122,216.32,216.27,7.30298455]
[1736165525745,4.9122,216.32,216.29,2.3125]
[1736165526341,4.9122,216.32,216.29,9.61548455]
[1736165526547,2.3123,216.31,216.29,7.30298455]
[1736165527148,4.9122,216.32,216.29,7.30298455]
[1736165527343,4.9122,216.32,216.29,9.61548455]
[1736165529351,2.6,216.32,216.3,2.3123]
[1736165529547,2.6,216.32,216.29,7.30298455]
[1736165529746,2.6,216.32,216.24,4.4081]
[1736165529942,4.9122,216.32,216.28,2.3125]
[1736165530350,4.9122,216.32,216.27,7.30298455]
[1736165530752,4.9122,216.32,216.29,7.30298455]
[1736165531454,4.9122,216.32,216.29,9.61548455]
[1736165536162,2.6,216.32,216.3,2.3123]
[1736165541358,2.3124,216.3,216.27,2.3126]
[1736165543151,2.3125,216.29,216.27,2.3126]
[1736165544356,2.3125,216.29,216.24,7.30298455]
[1736165544357,9.90298455,216.32,216.23,66.28538878]
[1736165544562,2.3129,216.26,216.22,2.3132]
[1736165544863,2.6,216.25,216.22,2.3132]
[1736165545256,4.9129,216.25,216.22,2.3132]
[1736165547360,7.30298455,216.24,216.16,7.30298455]
[1736165547559,7.30298455,216.22,216.11,3.99560202]
[1736165547759,2.3133,216.21,216.16,9.61678455]
[1736165547963,2.6,216.2,216.16,9.61678455]
[1736165548363,4.9134,216.2,216.16,7.30298455]
[1736165548665,4.9134,216.2,216.17,2.3137]
[1736165548864,2.6,216.2,216.17,2.3137]
[1736165549063,2.6,216.2,216.16,7.30298455]
[1736165549260,2.6,216.2,216.18,9.61658455]
[1736165552672,2.6,216.2,216.1,2.957]
[1736165552673,2.6,216.2,216.15,7.30298455]
[1736165553168,2.3138,216.17,216.13,9.61718455]
[1736165553371,9.90298455,216.2,216.1,2.957]
[1736165553564,9.90298455,216.2,216.12,7.30298455]
[1736165553869,2.3137,216.18,216.12,9.61728455]
[1736165554068,9.90298455,216.2,216.12,7.30298455]
[1736165554570,9.90298455,216.2,216.14,7.30298455]
[1736165555574,2.6,216.2,216.14,7.30298455]
[1736165556174,2.6,216.2,216.16,2.3138]
[1736165556572,2.3135,216.2,216.17,2.3137]
[1736165556771,2.6,216.19,216.14,7.30298455]
[1736165557170,7.30298455,216.25,216.18,7.30298455]
[1736165557374,2.6,216.24,216.18,7.30298455]
[1736165558371,2.6,216.24,216.19,2.3135]
[1736165558575,2.6,216.24,216.18,7.30298455]
[1736165559474,4.913,216.24,216.2,2.3134]
[1736165559773,2.6,216.24,216.2,2.3134]
[1736165561372,7.30298455,216.23,216.1,2.957]
[1736165561577,7.30298455,216.21,216.14,7.30298455]
[1736165562477,2.3135,216.2,216.16,2.3138]
[1736165562779,2.6,216.19,216.16,2.3138]
[1736165564084,4.9136,216.19,216.16,9.61678455]
[1736165564881,2.6,216.19,216.16,9.61678455]
[1736165565478,2.6,216.19,216.16,7.30298455]
[1736165566977,2.6,216.19,216.18,2.3136]
[1736165567677,2.6,216.19,216.14,7.30298455]
[1736165567886,4.9136,216.19,216.14,7.30298455]
[1736165568687,4.9136,216.19,216.16,2.3138]
[1736165570481,4.9136,216.19,216.17,2.3137]
[1736165570881,2.6,216.19,216.17,2.3137]
[1736165572186,2.6,216.19,216.18,2.3136]
[1736165576488,7.30298455,216.23,216.19,2.3135]
[1736165576679,2.6,216.22,216.19,2.3135]
[1736165577584,4.9133,216.22,216.19,2.3135]
[1736165579391,2.6,216.21,216.2,2.3134]
[1736165579586,2.6,216.21,216.18,7.30298455]
[1736165580391,2.6,216.21,216.2,2.3134]
[1736165582492,2.6,216.21,216.2,9.61638455]
[1736165582694,2.6,216.24,216.2,7.30298455]
[1736165582889,2.6,216.24,216.23,7.30298455]
[1736165583086,11.11908455,216.3,216.23,7.30298455]
[1736165583289,2.6,216.29,216.26,2.3127]
[1736165584493,2.6,216.29,216.15,72.39048399]
[1736165584691,3.47107347,216.33,216.28,2.3126]
[1736165584896,2.6,216.32,216.27,7.30298455]
[1736165585194,2.6,216.32,216.29,2.3125]
[1736165585994,2.6,216.32,216.27,7.30298455]
[1736165586292,2.6,216.32,216.3,2.3124]
[1736165586595,55.212,216.34,216.3,2.3124]
[1736165586792,2.6,216.33,216.3,2.3124]
[1736165586988,2.6,216.32,216.3,2.3124]
[1736165590795,12.21528455,216.32,216.28,2.3126]
[1736165590994,2.6,216.31,216.27,7.30298455]
[1736165591194,2.6,216.31,216.29,7.30298455]
[1736165591499,2.6,216.36,216.29,7.30298455]
[1736165591690,2.6,216.37,216.35,7.30298455]
[1736165592098,2.6,216.37,216.33,7.30298455]
[1736165592695,2.6,216.37,216.35,2.3118]
[1736165593099,2.6,216.37,216.36,2.3117]
[1736165593599,2.6,216.37,216.35,7.30298455]
[1736165594505,2.6,216.37,216.36,2.3117]
[1736165594900,2.6,216.39,216.35,7.30298455]
[1736165595100,2.6,216.39,216.38,2.3115]
[1736165596103,9.61398455,216.43,216.39,2.3114]
[1736165596303,2.6,216.42,216.39,2.3114]
[1736165599109,4.9111,216.42,216.39,2.3114]
[1736165600307,4.9111,216.42,216.37,7.30298455]
[1736165600308,2.3112,216.41,216.38,2.3115]
[1736165602311,4.9111,216.42,216.38,2.3115]
[1736165603605,4.9111,216.42,216.39,2.3114]
[1736165604013,2.6,216.41,216.39,7.30298455]
[1736165604215,2.6,216.42,216.41,7.30298455]
[1736165604807,1.4522,216.46,216.42,2.311]
[1736165604808,3.7629,216.46,216.42,2.311]
[1736165605107,2.6,216.45,216.42,2.311]
[1736165607212,7.30298455,216.43,216.3,4.6246]
[1736165607415,7.30298455,216.43,216.37,7.30298455]
[1736165607613,2.3111,216.42,216.38,2.3114]
[1736165608414,2.3111,216.42,216.37,7.30298455]
[1736165608616,2.3111,216.42,216.39,2.3114]
[1736165608816,2.3109,216.44,216.39,7.30298455]
[1736165609016,2.3109,216.44,216.4,2.3113]
[1736165609705,9.90298455,216.45,216.4,2.3113]
[1736165610016,2.311,216.43,216.4,2.3113]
[1736165613113,7.30298455,216.45,216.37,7.30298455]
[1736165613409,9.61368455,216.47,216.41,7.30298455]
[1736165613614,2.6,216.46,216.41,7.30298455]
[1736165614016,2.6,216.46,216.43,2.3109]
[1736165614615,4.9107,216.46,216.43,2.3109]
[1736165615408,4.9107,216.46,216.39,7.30298455]
[1736165615409,2.6,216.46,216.32,4.6244]
[1736165615616,2.3114,216.39,216.35,2.3118]
[1736165615817,2.6,216.38,216.36,7.30298455]
[1736165616220,2.6,216.38,216.37,2.3116]
[1736165619419,2.6,216.41,216.4,2.3112]
[1736165620820,2.6,216.41,216.28,6.9198]
[1736165621011,9.90298455,216.41,216.34,7.30298455]
[1736165621411,2.6,216.41,216.36,7.30298455]
[1736165621919,2.3114,216.4,216.36,7.30298455]
[1736165622223,1.4374,216.44,216.38,2.3115]
[1736165622224,2.6,216.39,216.38,2.3115]
[1736165626021,2.6,216.39,216.35,7.30298455]
[1736165627217,2.6,216.4,216.35,7.30298455]
[1736165627518,2.6,216.45,216.39,7.30298455]
[1736165627921,2.6,216.45,216.44,2.3109]
[1736165628514,2.6,216.45,216.41,7.30298455]
[1736165628819,2.6,216.45,216.43,2.311]
[1736165631517,2.6,216.45,216.4,7.30298455]
[1736165631722,2.6,216.45,216.44,2.3109]
[1736165631922,2.6,216.45,216.39,7.30298455]
[1736165632122,7.30298455,216.47,216.39,7.30298455]
[1736165632123,7.30298455,216.47,216.42,2.311]
[1736165632425,2.6,216.44,216.42,2.311]
[1736165632623,2.6,216.44,216.39,7.30298455]
[1736165633428,2.6,216.45,216.33,77.03399984]
[1736165633617,2.6,216.45,216.4,7.30298455]
[1736165634223,52.92,216.48,216.42,7.30298455]
[1736165634428,1.4414,216.5,216.42,7.30298455]
[1736165634725,2.6,216.49,216.42,7.30298455]
[1736165635126,1.4414,216.5,216.48,2.3104]
[1736165635429,2.6,216.49,216.48,2.3104]
[1736165637930,2.3099,216.53,216.48,2.3104]
[1736165638125,7.30298455,216.5,216.48,2.3104]
[1736165638625,7.30298455,216.5,216.49,2.3103]
[1736165638826,2.3099,216.53,216.35,4.4389]
[1736165638827,21.92355729,216.6,216.35,4.4389]
[1736165639033,7.30298455,216.51,216.5,2.3101]
[1736165639332,2.6,216.51,216.5,2.3101]
[1736165639727,7.30298455,216.54,216.53,2.3099]
[1736165639923,9.90298455,216.54,216.53,2.3099]
[1736165641430,2.6,216.54,216.53,2.3099]
[1736165645235,9.90298455,216.54,216.52,2.31]
[1736165645432,9.94298455,216.54,216.52,2.31]
[1736165646838,2.3096,216.56,216.53,2.3099]
[1736165647034,7.30298455,216.54,216.53,2.3099]
[1736165648035,7.30298455,216.54,216.51,2.31]
[1736165652437,7.30298455,216.54,216.52,2.31]
[1736165659247,9.94298455,216.55,216.53,2.3098]
[1736165661843,2.64,216.55,216.49,7.30298455]
[1736165662147,2.64,216.55,216.54,2.3098]
[1736165662346,2.64,216.56,216.54,2.3098]
[1736165663847,2.64,216.55,216.54,2.3098]
[1736165667745,7.30298455,216.56,216.54,2.3098]
[1736165668044,9.94298455,216.56,216.54,2.3098]
[1736165679758,2.6,216.55,216.54,2.3098]
[1736165689583,4.9097,216.55,216.44,4.6216]
[1736165689880,4.9097,216.55,216.48,7.30298455]
[1736165690079,4.9097,216.55,216.53,2.3099]
[1736165694080,7.30298455,216.54,216.53,2.3099]
[1736165694473,7.30298455,216.54,216.42,4.3693]
[1736165694679,7.30298455,216.48,216.47,2.3105]
[1736165694881,9.90298455,216.48,216.47,2.3105]
[1736165697987,9.90298455,216.48,216.46,2.3106]
[1736165699891,9.90298455,216.48,216.42,10.17578455]
[1736165700089,9.90298455,216.48,216.47,2.3105]
[1736165703893,2.6,216.48,216.47,2.3105]
[1736165705997,2.58,216.51,216.46,7.30298455]
[1736165706299,2.58,216.51,216.43,1.3863]
[1736165706300,2.58,216.51,216.48,7.30298455]
[1736165707498,2.58,216.51,216.5,9.61318455]
[1736165709293,7.30298455,216.56,216.5,7.30298455]
[1736165709499,2.58,216.55,216.54,2.3098]
[1736165709693,7.30298455,216.56,216.54,2.3098]
[1736165709999,2.58,216.55,216.54,2.3098]
[1736165721000,2.58,216.55,216.53,2.3099]
[1736165721204,7.30298455,216.54,216.53,2.3099]
[1736165722408,9.61278455,216.54,216.43,1.3863]
[1736165722708,2.3098,216.54,216.46,7.30298455]
[1736165722906,7.30298455,216.53,216.46,7.30298455]
[1736165723306,7.30298455,216.53,216.51,2.31]
[1736165725913,9.61288455,216.53,216.51,2.31]
[1736165726514,9.61288455,216.53,216.46,7.30298455]
[1736165726713,9.61288455,216.53,216.5,2.3102]
[1736165727714,7.30298455,216.51,216.48,2.3104]
[1736165727915,7.30298455,216.49,216.43,1.3863]
[1736165728112,2.58,216.48,216.43,1.3863]
[1736165729508,2.58,216.48,216.47,2.3105]
[1736165732418,7.30298455,216.51,216.5,2.3102]
[1736165732613,9.88298455,216.51,216.5,2.3102]
[1736165732812,2.58,216.51,216.5,2.3102]
[1736165744721,3.58298664,216.63,216.49,7.30298455]
[1736165744921,2.3091,216.61,216.58,2.3094]
[1736165746427,2.3092,216.6,216.57,2.3095]
[1736165746626,7.30298455,216.58,216.57,2.3095]
[1736165749822,9.86298455,216.58,216.57,2.3095]
[1736165750023,2.309,216.62,216.54,7.30298455]
[1736165750218,7.30298455,216.6,216.54,7.30298455]
[1736165751432,7.30298455,216.6,216.59,2.3092]
[1736165757727,2.56,216.61,216.59,2.3092]
[1736165757927,7.30298455,216.6,216.59,2.3092]
[1736165758832,2.56,216.61,216.59,2.3092]
[1736165759027,2.56,216.61,216.52,7.30298455]
[1736165759534,7.30298455,216.59,216.52,7.30298455]
[1736165760131,7.30298455,216.59,216.58,2.3094]
[1736165763531,7.30298455,216.59,216.49,2.8618]
[1736165763733,2.56,216.61,216.58,5.16]
[1736165764134,2.3095,216.57,216.54,2.3098]
[1736165764432,2.56,216.56,216.54,2.3098]
[1736165765533,4.8696,216.56,216.54,2.3098]
[1736165766535,2.56,216.56,216.54,2.3098]
[1736165766736,2.56,216.56,216.55,2.3097]
[1736165766936,9.86298455,216.56,216.55,2.3097]
[1736165770940,9.86298455,216.56,216.49,10.16478455]
[1736165771134,9.86298455,216.56,216.54,2.3098]
[1736165772233,2.56,216.56,216.54,2.3098]
[1736165772437,9.86298455,216.56,216.54,2.3098]
[1736165772641,9.86298455,216.56,216.55,2.3097]
[1736165773141,9.86298455,216.56,216.48,7.30298455]
[1736165773338,7.30298455,216.54,216.48,7.30298455]
[1736165774640,7.30298455,216.54,216.47,84.11843117]
[1736165774938,2.31,216.53,216.49,2.3103]
[1736165775140,2.31,216.53,216.47,84.11843117]
[1736165775642,7.30298455,216.52,216.5,2.3102]
[1736165775940,2.56,216.51,216.5,2.3102]
[1736165779634,2.56,216.51,216.47,84.11843117]
[1736165779839,2.56,216.51,216.5,2.3102]
[1736165782043,9.86298455,216.51,216.5,2.3102]
[1736165782746,9.86298455,216.51,216.47,84.11843117]
[1736165783046,7.30298455,216.49,216.47,84.11843117]
[1736165783444,7.30298455,216.49,216.42,7.30298455]
[1736165783640,7.30298455,216.47,216.42,2.3111]
[1736165783843,2.56,216.46,216.38,4.623]
[1736165784042,2.56,216.46,216.4,11.56664072]
[1736165784239,2.56,216.46,216.45,2.3108]
[1736165785151,7.30298455,216.49,216.42,7.30298455]
[1736165785344,2.56,216.48,216.42,7.30298455]
[1736165785547,2.56,216.48,216.44,7.30298455]
[1736165786449,2.56,216.48,216.47,2.3105]
[1736165791251,4.8704,216.48,216.45,2.3107]
[1736165791952,4.8704,216.48,216.46,2.3106]
[1736165793353,4.8705,216.48,216.45,2.3107]
[1736165793553,4.8705,216.48,216.41,7.30298455]